Workbook

Sheet 11月
A1: 城市居民最低生活保障工作情况统计表(二）
A2: 填报单位：鼓楼区民政局 （2025年11月）
A3: 区县 | C3: 城市低保 总人数 | D3: 按家庭成员身份分类 | M3: 就业年龄段重残、重病丧劳人员 | N3: 就业年龄段内有劳动能力但尚未正式就业的人员分类 | W3: 对特殊困难对象的特殊照顾
D4: 在职人员 | E4: 离岗 人员 | F4: 离退休 人员 | G4: 在领失业救济金人员 | H4: 失业人员 | I4: 无业人员 | J4: 学生 | K4: 三无 人员 | L4: 其他 人员 | N4: 合计 | O4: 灵活就业 人员 | P4: 不充分就业人员 | Q4: 刑释解教人员 | R4: 有孩子、病人需照顾人员 | S4: 年龄偏大、文化低人员 | T4: 一般残疾、身体状况较差人员 | U4: 无合适岗位人员 | V4: 其他人员 | W4: 增发10%人员 | Z4: 增发20%人员 | AB4: 享受100%重残人员 | AC4: 享受100%三级精智残人员 | AD4: 享受130%人员 | AG4: 2倍单独进线人员（享受100%） | AK4: 成年无业重残单人户 （享受60%）
W5: 总数 | X5: 其中 | Z5: 总数 | AA5: 其中 | AD5: 总数 | AE5: 其中 | AG5: 总数 | AH5: 其中
X6: 退役军人 | Y6: 60-79岁老人 | AA6: 80岁以上老人 | AE6: 三无 | AF6: 一类病 | AH6: 重残疾人员 | AI6: 智力、精神（三级） | AJ6: 一类病
C7: 人 | D7: 人 | E7: 人 | F7: 人 | G7: 人 | H7: 人 | I7: 人 | J7: 人 | K7: 人 | L7: 人 | M7: 人 | N7: 人 | O7: 人 | P7: 人 | Q7: 人 | R7: 人 | S7: 人 | T7: 人 | U7: 人 | V7: 人 | W7: 人 | X7: 人 | Y7: 人 | Z7: 人 | AA7: 人 | AB7: 人 | AC7: 人 | AD7: 人 | AE7: 人 | AF7: 人 | AG7: 人 | AH7: 人 | AI7: 人 | AJ7: 人 | AK7: 人
A8: 1 | C8: 2=3到 11的和 | D8: 3 | E8: 4 | F8: 5 | G8: 6 | H8: 7 | I8: 8 | J8: 9 | K8: 10 | L8: 11 | M8: 12 | N8: 13=14到21的和 | O8: 14 | P8: 15 | Q8: 16 | R8: 17 | S8: 18 | T8: 19 | U8: 20 | V8: 21 | W8: 22 | X8: 23 | Y8: 24 | Z8: 25 | AA8: 26 | AB8: 27 | AC8: 28 | AD8: 29 | AE8: 30 | AF8: 31 | AG8: 32 | AH8: 33 | AI8: 34 | AJ8: 35 | AK8: 36
A9: 1 | B9: 华侨路 | C9: 171 | D9: 3 | E9: 0 | F9: 5 | G9: 0 | H9: 5 | I9: 86 | J9: 24 | K9: 0 | L9: 48 | M9: 39 | N9: 52 | O9: 2 | P9: 2 | Q9: 33 | R9: 1 | S9: 0 | T9: 11 | U9: 0 | V9: 3 | W9: 70 | X9: 1 | Y9: 14 | Z9: 10 | AA9: 2 | AB9: 20 | AC9: 2 | AD9: 12 | AE9: 0 | AF9: 12 | AG9: 13 | AH9: 5 | AI9: 2 | AJ9: 6 | AK9: 2
A10: 2 | B10: 宁海路 | C10: =D10+E10+F10+G10+H10+I10+J10+K10+L10 -> 148 | D10: 2 | E10: 1 | F10: 3 | G10: 0 | H10: 0 | I10: 94 | J10: 16 | K10: 0 | L10: 32 | M10: 40 | N10: =O10+P10+Q10+R10+S10+T10+U10+V10 -> 108 | O10: 0 | P10: 0 | Q10: 35 | R10: 1 | S10: 1 | T10: 3 | U10: 1 | V10: 67 | W10: 73 | X10: 1 | Y10: 11 | Z10: 8 | AA10: 4 | AB10: 10 | AC10: 3 | AD10: 18 | AE10: 0 | AF10: 18 | AG10: 19 | AH10: 6 | AI10: 0 | AJ10: 13 | AK10: 2
A11: 3 | B11: 湖南路 | C11: =D11+E11+F11+G11+H11+I11+J11+K11+L11 -> 150 | D11: 0 | E11: 0 | F11: 7 | G11: 1 | H11: 0 | I11: 86 | J11: 17 | K11: 0 | L11: 39 | M11: 36 | N11: 68 | O11: 0 | P11: 0 | Q11: 37 | R11: 0 | S11: 22 | T11: 9 | U11: 0 | V11: 0 | W11: 62 | X11: 1 | Y11: 20 | Z11: 12 | AA11: 4 | AB11: 14 | AC11: 5 | AD11: 14 | AE11: 0 | AF11: 14 | AG11: 23 | AH11: 8 | AI11: 2 | AJ11: 13 | AK11: 3
A12: 4 | B12: 中央门 | C12: 410 | D12: 2 | E12: 2 | F12: 13 | G12: 0 | H12: 2 | I12: 232 | J12: 44 | K12: 0 | L12: 115 | M12: 56 | N12: 234 | O12: 10 | P12: 20 | Q12: 92 | R12: 28 | S12: 14 | T12: 37 | U12: 22 | V12: 11 | W12: 197 | X12: 2 | Y12: 29 | Z12: 37 | AA12: 7 | AB12: 33 | AC12: 11 | AD12: 34 | AE12: 0 | AF12: 34 | AG12: 21 | AH12: 7 | AI12: 4 | AJ12: 10 | AK12: 5
A13: 5 | B13: 挹江门 | C13: =SUM(D13:L13) -> 245 | D13: 0 | E13: 0 | F13: 4 | G13: 0 | H13: 13 | I13: 141 | J13: 38 | K13: 0 | L13: 49 | M13: 61 | N13: =SUM(O13:V13) -> 93 | O13: 1 | P13: 0 | Q13: 64 | R13: 1 | S13: 11 | T13: 16 | U13: 0 | V13: 0 | W13: 109 | X13: 1 | Y13: 35 | Z13: 25 | AA13: 2 | AB13: 20 | AC13: 4 | AD13: =SUM(AE13:AF13) -> 22 | AE13: 0 | AF13: 22 | AG13: 25 | AH13: 12 | AI13: 2 | AJ13: 11 | AK13: 6
A14: 6 | B14: 江东 | C14: 100 | D14: 0 | E14: 1 | F14: 5 | G14: 1 | H14: 0 | I14: 61 | J14: 16 | K14: 0 | L14: 16 | M14: 22 | N14: 39 | O14: 4 | P14: 0 | Q14: 16 | R14: 3 | S14: 2 | T14: 14 | U14: 0 | V14: 0 | W14: 43 | X14: 1 | Y14: 12 | Z14: 7 | AA14: 2 | AB14: 13 | AC14: 6 | AD14: 5 | AE14: 0 | AF14: 5 | AG14: 5 | AH14: 1 | AI14: 1 | AJ14: 3 | AK14: 2
A15: 7 | B15: 凤凰 | C15: 262 | D15: 1 | E15: 1 | F15: 0 | G15: 0 | H15: 4 | I15: 153 | J15: 38 | K15: 0 | L15: 65 | M15: 52 | N15: 105 | O15: 0 | P15: 0 | Q15: 81 | R15: 0 | S15: 6 | T15: 18 | U15: 0 | V15: 0 | W15: 126 | X15: 1 | Y15: 15 | Z15: 30 | AA15: 11 | AB15: 15 | AC15: 11 | AD15: 22 | AE15: 0 | AF15: 22 | AG15: 9 | AH15: 3 | AI15: 0 | AJ15: 6 | AK15: 7
A16: 8 | B16: 热南 | C16: 235 | D16: 0 | E16: 1 | F16: 7 | G16: 0 | H16: 0 | I16: 132 | J16: 31 | K16: 0 | L16: 64 | M16: 27 | N16: 105 | O16: 15 | P16: 0 | Q16: 56 | R16: 1 | S16: 4 | T16: 21 | U16: 8 | V16: 0 | W16: 119 | X16: 0 | Y16: 14 | Z16: 20 | AA16: 2 | AB16: 14 | AC16: 7 | AD16: 10 | AE16: 0 | AF16: 10 | AG16: 18 | AH16: 7 | AI16: 2 | AJ16: 9 | AK16: 5
A17: 9 | B17: 下关 | C17: =D17+E17+F17+G17++H17+I17+J17+K17+L17 -> 394 | D17: 3 | E17: 2 | F17: 11 | G17: 0 | H17: 3 | I17: 214 | J17: 33 | K17: 0 | L17: 128 | M17: 55 | N17: =O17+P17+Q17+R17+S17+T17+U17+V17 -> 159 | O17: 20 | P17: 18 | Q17: 67 | R17: 11 | S17: 7 | T17: 27 | U17: 6 | V17: 3 | W17: 187 | X17: 0 | Y17: 16 | Z17: 28 | AA17: 4 | AB17: 36 | AC17: 6 | AD17: 38 | AE17: 0 | AF17: 38 | AG17: 25 | AH17: 10 | AI17: 6 | AJ17: 9 | AK17: 4
A18: 10 | B18: 建宁路 | C18: 222 | D18: 0 | E18: 1 | F18: 1 | G18: 0 | H18: 0 | I18: 154 | J18: 22 | K18: 0 | L18: 45 | M18: 50 | N18: 104 | O18: 0 | P18: 13 | Q18: 61 | R18: 6 | S18: 13 | T18: 6 | U18: 5 | V18: 0 | W18: 92 | X18: 0 | Y18: 24 | Z18: 11 | AA18: 3 | AB18: 22 | AC18: 11 | AD18: 33 | AE18: 0 | AF18: 33 | AG18: 7 | AH18: 4 | AI18: 1 | AJ18: 2 | AK18: 4
A19: 11 | B19: 小市 | C19: 335 | D19: 3 | E19: 1 | F19: 12 | G19: 2 | H19: 0 | I19: 206 | J19: 46 | K19: 1 | L19: 64 | M19: 103 | N19: 105 | O19: 5 | P19: 0 | Q19: 54 | R19: 10 | S19: 10 | T19: 20 | U19: 6 | V19: 0 | W19: 119 | X19: 0 | Y19: 36 | Z19: 33 | AA19: 7 | AB19: 33 | AC19: 13 | AD19: 28 | AE19: 1 | AF19: 27 | AG19: 43 | AH19: 18 | AI19: 4 | AJ19: 21 | AK19: 8
A20: 12 | B20: 宝塔桥 | C20: 721 | D20: 7 | E20: 2 | F20: 30 | G20: 0 | H20: 0 | I20: 382 | J20: 98 | K20: 0 | L20: 202 | M20: 109 | N20: 273 | O20: 71 | P20: 19 | Q20: 60 | R20: 34 | S20: 29 | T20: 50 | U20: 10 | V20: 0 | W20: 267 | X20: 12 | Y20: 96 | Z20: 71 | AA20: 9 | AB20: 66 | AC20: 22 | AD20: 71 | AE20: 0 | AF20: 71 | AG20: 75 | AH20: 20 | AI20: 15 | AJ20: 40 | AK20: 8
A21: 13 | B21: 幕府山 | C21: =SUM(D21:L21) -> 281 | D21: 4 | E21: 0 | F21: 14 | G21: 2 | H21: 10 | I21: 141 | J21: 27 | K21: 4 | L21: 79 | M21: 63 | N21: =SUM(O21:V21) -> 110 | O21: 8 | P21: 5 | Q21: 35 | R21: 10 | S21: 16 | T21: 32 | U21: 3 | V21: 1 | W21: 116 | X21: 0 | Y21: 32 | Z21: 25 | AA21: 10 | AB21: 20 | AC21: 4 | AD21: 40 | AE21: 4 | AF21: 36 | AG21: =SUM(AH21:AJ21) -> 30 | AH21: 14 | AI21: 6 | AJ21: 10 | AK21: 2
A22: 合计 | C22: =SUM(C9:C21) -> 3674 | D22: =SUM(D9:D21) -> 25 | E22: 12 | F22: 112 | G22: 6 | H22: 37 | I22: 2082 | J22: 450 | K22: 5 | L22: 946 | M22: 713 | N22: 1555 | O22: 136 | P22: 77 | Q22: 691 | R22: 106 | S22: =SUM(S9:S21) -> 135 | T22: 264 | U22: 61 | V22: 85 | W22: 1580 | X22: 20 | Y22: 354 | Z22: 317 | AA22: 67 | AB22: 316 | AC22: 105 | AD22: 347 | AE22: 5 | AF22: 342 | AG22: =SUM(AG9:AG21) -> 313 | AH22: 115 | AI22: 45 | AJ22: 153 | AK22: =SUM(AK9:AK21) -> 58
A23: 填表人： 填表时间：2025.11 签批人：
